bitfinex-derivatives/quotes_BTCF0:USTF0_20250218
["timestamp","ask_amount","ask_price","bid_price","bid_amount"]
[1739892850794,0.2092846,95581.0,95566.0,0.05535702]
[1739892850795,0.2093149,95567.0,95566.0,0.00015702]
[1739892853697,0.2103149,95567.0,95566.0,0.00115702]
[1739892853999,0.22191009,95567.0,95566.0,0.00115702]
[1739892854486,0.28051009,95567.0,95566.0,0.00115702]
[1739892854690,0.2093521,95550.0,95548.0,0.91272]
[1739892854886,0.3608,95557.0,95537.0,0.3608]
[1739892855096,0.2093762,95539.0,95538.0,0.11996]
[1739892855290,0.2093852,95535.0,95533.0,0.1654]
[1739892855485,0.2093731,95541.0,95534.0,0.3608]
[1739892856289,0.2093763,95539.0,95534.0,0.3608]
[1739892856599,0.000157,95544.0,95542.0,0.2093685]
[1739892856800,0.2164,95549.0,95543.0,0.3608]
[1739892857093,0.2164,95549.0,95544.0,0.11996]
[1739892857490,0.2164,95549.0,95544.0,0.3293245]
[1739892857696,0.2093635,95545.0,95543.0,0.3608]
[1739892858188,0.2174,95549.0,95543.0,0.3608]
[1739892858384,0.2174,95549.0,95547.0,0.2093573]
[1739892858691,0.2174,95549.0,95548.0,0.3253565]
[1739892859502,0.001,95549.0,95548.0,0.3253565]
[1739892860092,0.2103543,95549.0,95548.0,0.116]
[1739892860603,0.2113543,95549.0,95548.0,0.116]
[1739892860786,0.2113543,95549.0,95548.0,0.0587]
[1739892861097,0.5772,95549.0,95533.0,0.1111]
[1739892861301,0.5701872,95534.0,95532.0,0.00156959]
[1739892861689,0.1074,95533.0,95532.0,0.00156959]
[1739892862193,0.1074,95533.0,95518.0,0.1694]
[1739892862383,0.2094069,95525.0,95518.0,0.1694]
[1739892864398,0.2114069,95525.0,95518.0,0.1694]
[1739892864900,0.22281268,95525.0,95518.0,0.1694]
[1739892866794,0.58361268,95525.0,95518.0,0.1694]
[1739892867099,0.37420578,95525.0,95503.0,0.3608]
[1739892867400,0.1896528,95513.0,95509.0,0.0574]
[1739892867598,0.1896528,95520.0,95509.0,0.0574]
[1739892868191,0.1896528,95520.0,95511.0,0.3608]
[1739892868487,0.2094345,95513.0,95511.0,0.3608]
[1739892868690,0.2114345,95513.0,95511.0,0.3608]
[1739892868888,0.2094398,95510.0,95509.0,0.0574]
[1739892870302,0.002,95513.0,95509.0,0.0574]
[1739892870694,0.1936528,95520.0,95509.0,0.0574]
[1739892871003,0.2094381,95511.0,95509.0,0.0574]
[1739892871298,0.004,95510.0,95509.0,0.0574]
[1739892871505,0.004,95510.0,95509.0,0.266842]
[1739892871800,0.209414,95522.0,95511.0,0.2094357]
[1739892872003,0.209414,95522.0,95513.0,0.3608]
[1739892872200,0.004,95520.0,95513.0,0.3608]
[1739892872794,0.2094288,95515.0,95513.0,0.3608]
[1739892873096,0.2094398,95510.0,95509.0,0.0574]
[1739892873799,0.22069396,95510.0,95509.0,0.0574]
[1739892875000,0.01125416,95510.0,95505.0,0.00015701]
[1739892875208,0.2094486,95506.0,95505.0,0.00015701]
[1739892875902,0.0113498,95510.0,95505.0,0.00015701]
[1739892876104,0.2094486,95506.0,95505.0,0.00015701]
[1739892876897,0.209435,95513.0,95505.0,0.00015701]
[1739892877102,0.20133574,95520.0,95508.0,0.3608]
[1739892877303,0.209442,95509.0,95508.0,0.3608]
[1739892878108,0.2094486,95506.0,95505.0,0.00015701]
[1739892880913,0.2094639,95499.0,95490.0,0.1114]
[1739892883710,0.22096663,95499.0,95490.0,0.1114]
[1739892885807,0.01150273,95499.0,95490.0,0.1114]
[1739892886012,0.3608,95500.0,95490.0,0.1114]
[1739892886417,0.3608,95500.0,95495.0,0.2094725]
[1739892886921,0.2164,95506.0,95503.0,0.209455]
[1739892887110,0.2164,95506.0,95504.0,0.1653]
[1739892887416,0.2164,95506.0,95505.0,0.2094508]
[1739892887716,0.2094508,95505.0,95504.0,0.1653]
[1739892888208,0.2094639,95499.0,95498.0,0.00157069]
[1739892890017,0.3608,95502.0,95490.0,0.1687]
[1739892890223,0.2094739,95495.0,95490.0,0.1687]
[1739892890423,0.2094752,95494.0,95490.0,0.1687]
[1739892891222,0.12650868,95500.0,95490.0,0.1687]
[1739892891720,0.2094799,95492.0,95490.0,0.1687]
[1739892892117,0.2094643,95499.0,95490.0,0.1687]
[1739892892324,0.2094757,95494.0,95490.0,0.1687]
[1739892893323,0.2094798,95492.0,95490.0,0.1687]
[1739892893724,0.2094662,95498.0,95490.0,0.1687]
[1739892893924,0.2094662,95498.0,95490.0,0.3781834]
[1739892894331,0.2094801,95492.0,95490.0,0.1687]
[1739892895334,0.22116993,95492.0,95490.0,0.1687]
[1739892895825,0.12650868,95500.0,95490.0,0.1687]
[1739892896429,0.20948,95492.0,95490.0,0.1687]
[1739892897637,0.13797296,95500.0,95494.0,0.209474]
[1739892898039,0.34743496,95500.0,95494.0,0.22086844]
[1739892898236,0.2094686,95497.0,95494.0,0.209474]
[1739892898441,0.2094708,95496.0,95490.0,0.1687]
[1739892899235,0.2094708,95496.0,95490.0,0.3781833]
[1739892899436,0.2094708,95496.0,95493.0,0.2094769]
[1739892900247,0.2094663,95498.0,95495.0,0.2094722]
[1739892900546,0.13797296,95500.0,95495.0,0.2094722]
[1739892900750,0.2094771,95493.0,95492.0,0.3608]
[1739892900942,0.2094815,95491.0,95490.0,0.1687]
[1739892901243,0.00056001,95499.0,95490.0,0.1687]
[1739892901548,0.13797296,95500.0,95493.0,0.3608]
[1739892901751,0.01146428,95500.0,95493.0,0.37233985]
[1739892901942,0.00015701,95502.0,95499.0,0.2094639]
[1739892902243,0.00015701,95502.0,95493.0,0.37233985]
[1739892902443,0.00015701,95502.0,95501.0,0.5702595]
[1739892910143,0.00157097,95519.0,95518.0,0.2094223]
[1739892910346,0.00157097,95519.0,95518.0,0.5702223]
[1739892911148,0.00522765,95533.0,95532.0,0.2093916]
[1739892911342,0.00522765,95533.0,95527.0,0.2094018]
[1739892911651,0.209405,95526.0,95524.0,0.209409]
[1739892912049,0.09644258,95529.0,95520.0,0.0556]
[1739892912355,0.2094157,95521.0,95520.0,0.0556]
[1739892912945,0.2094376,95511.0,95510.0,0.0015705]
[1739892913145,0.2094376,95511.0,95510.0,0.0558705]
[1739892913858,0.22102589,95511.0,95510.0,0.0558705]
[1739892914048,0.58182589,95511.0,95509.0,0.00015701]
[1739892914551,0.3608,95510.0,95509.0,0.00015701]
[1739892914750,0.3608,95510.0,95492.0,0.3608]
[1739892914948,0.209482,95491.0,95485.0,0.23532]
[1739892915152,0.209482,95491.0,95485.0,0.1154]
[1739892916247,0.12650868,95494.0,95485.0,0.1154]
[1739892916445,0.00015701,95498.0,95486.0,0.2094924]
[1739892916649,0.00015701,95498.0,95488.0,0.2094863]
[1739892916851,0.00015701,95498.0,95493.0,0.3608]
[1739892917051,0.00015701,95498.0,95496.0,0.2094693]
[1739892917256,0.09644258,95509.0,95500.0,0.2094601]
[1739892917462,0.09644258,95509.0,95506.0,0.3608]
[1739892917662,0.09644258,95509.0,95507.0,0.0563]
[1739892918357,0.09644258,95509.0,95507.0,0.1134]
[1739892919354,0.01132143,95511.0,95507.0,0.1134]
[1739892919657,0.3608,95513.0,95498.0,0.00015701]
[1739892919855,0.2094639,95499.0,95498.0,0.00015701]
[1739892920055,0.12650868,95508.0,95498.0,0.00015701]
[1739892920259,0.12650868,95508.0,95503.0,0.3608]
[1739892920550,0.12650868,95508.0,95504.0,0.054]
[1739892920757,0.2094495,95506.0,95504.0,0.054]
[1739892921661,0.209453,95504.0,95503.0,0.3608]
[1739892921860,0.209453,95504.0,95503.0,0.27562156]
[1739892922661,0.2094639,95499.0,95498.0,0.00015701]
[1739892924757,0.0587,95503.0,95483.0,0.054]
[1739892924963,0.5702948,95485.0,95483.0,0.054]
[1739892925152,0.12650868,95493.0,95483.0,0.054]
[1739892925461,0.33598768,95493.0,95483.0,0.054]
[1739892925653,0.12650868,95493.0,95483.0,0.054]
[1739892926153,0.2094961,95485.0,95483.0,0.054]
[1739892926862,0.2094961,95485.0,95483.0,0.056]
[1739892926863,0.22075665,95485.0,95483.0,0.056]
[1739892927049,0.2094783,95493.0,95483.0,0.056]
[1739892927250,0.00015701,95498.0,95496.0,0.2094694]
[1739892927553,0.09644258,95503.0,95487.0,0.3608]
[1739892927554,0.09644258,95503.0,95497.0,0.5334]
[1739892927758,0.10746551,95503.0,95497.0,0.5334]
[1739892927949,0.10746551,95503.0,95499.0,0.3608]
[1739892928348,0.01102293,95503.0,95499.0,0.3608]
[1739892928548,0.55370392,95506.0,95499.0,0.3608]
[1739892928747,0.55314391,95506.0,95499.0,0.3608]
[1739892929058,0.34369461,95506.0,95499.0,0.3608]
[1739892929259,0.25469461,95506.0,95504.0,0.2094522]
[1739892929563,0.06848525,95530.0,95503.0,0.3608]
[1739892929764,0.0554,95537.0,95521.0,0.3608]
[1739892929960,0.06693421,95537.0,95521.0,0.3608]
[1739892930262,0.06693421,95537.0,95521.0,0.5702145]
[1739892930457,0.06693421,95537.0,95531.0,0.3608]
[1739892930665,0.00513547,95541.0,95540.0,0.209374]
[1739892930865,0.0591,95549.0,95540.0,0.570174]
[1739892931254,0.2684559,95549.0,95540.0,0.570174]
[1739892931650,0.2093641,95545.0,95540.0,0.3608]
[1739892932361,0.09643322,95546.0,95530.0,0.3608]
[1739892932659,0.12650868,95540.0,95530.0,0.3608]
[1739892932853,0.12650868,95540.0,95522.0,0.36095701]
[1739892932854,0.209411,95524.0,95522.0,0.00015701]
[1739892933356,0.056,95523.0,95522.0,0.00015701]
[1739892933863,0.00527278,95542.0,95522.0,0.36095701]
[1739892934159,0.00527278,95542.0,95540.0,0.2093725]
[1739892934357,0.00527278,95542.0,95535.0,0.3608]
[1739892934557,0.00527278,95542.0,95537.0,0.209379]
[1739892935159,0.12380691,95549.0,95535.0,0.3608]
[1739892935666,0.11269709,95549.0,95544.0,0.5701646]
[1739892936259,0.11269709,95549.0,95547.0,0.2093579]
[1739892936567,0.36136001,95559.0,95544.0,0.3608]
[1739892936869,0.209339,95556.0,95551.0,0.2093493]
[1739892937369,0.01126968,95557.0,95544.0,0.5701636]
[1739892937563,0.36136001,95559.0,95544.0,0.5701636]
[1739892937766,0.36136001,95559.0,95544.0,0.3608]
[1739892937957,0.00532362,95558.0,95557.0,0.3608]
[1739892938157,0.09641616,95567.0,95557.0,0.3608]
[1739892938359,0.09641616,95567.0,95566.0,0.3608]
[1739892938559,0.10780455,95567.0,95566.0,0.3608]
[1739892938763,0.09641616,95567.0,95566.0,0.3608]
[1739892939470,0.00056001,95579.0,95566.0,0.3608]
[1739892939667,0.0529,95594.0,95578.0,0.3608]
[1739892939867,0.0584,95599.0,95578.0,0.3608]
[1739892939868,0.0584,95599.0,95587.0,0.5700692]
[1739892940058,0.5070017,95600.0,95587.0,0.5700692]
[1739892940264,0.5070017,95600.0,95587.0,0.58154649]
[1739892940464,0.10056001,95600.0,95599.0,0.2092448]
[1739892940659,0.10056001,95600.0,95599.0,0.5700448]
[1739892940866,0.1,95600.0,95599.0,0.5700448]
[1739892942676,0.1,95600.0,95591.0,0.056]
[1739892942867,0.1,95600.0,95592.0,0.3290587]
[1739892943176,0.1,95600.0,95591.0,0.056]
[1739892943471,0.1,95600.0,95592.0,0.1198]
[1739892943675,0.1,95600.0,95599.0,0.001]
[1739892944173,0.1,95600.0,95595.0,0.3608]
[1739892944364,0.1,95600.0,95598.0,0.2092454]
[1739892944870,0.1,95600.0,95599.0,0.0603]
[1739892945472,0.1,95600.0,95599.0,0.0593]
[1739892945683,0.1,95600.0,95599.0,0.4201]
[1739892946265,0.1,95600.0,95599.0,0.3608]
[1739892946463,0.1,95600.0,95599.0,0.48056]
[1739892947262,0.1,95600.0,95599.0,0.48356]
[1739892948066,0.1,95600.0,95599.0,0.48156]
[1739892948269,0.1133,95619.0,95618.0,0.2092032]
[1739892948460,0.1133,95619.0,95612.0,0.2092163]
[1739892948660,0.2092148,95613.0,95608.0,0.3608]
[1739892949159,0.1133,95619.0,95608.0,0.37185535]
[1739892949474,0.209204,95618.0,95613.0,0.2092131]
[1739892949670,0.1133,95619.0,95613.0,0.2092131]
[1739892949671,0.209206,95617.0,95613.0,0.2092131]
[1739892949864,0.209206,95617.0,95608.0,0.37185535]
[1739892950071,0.209206,95617.0,95614.0,0.2092115]
[1739892950466,0.2092081,95616.0,95614.0,0.2092115]
[1739892951173,0.1133,95619.0,95614.0,0.2092115]
[1739892951375,0.1133,95619.0,95608.0,0.58108025]
[1739892951672,0.209217,95612.0,95608.0,0.3608]
[1739892952066,0.209217,95612.0,95608.0,0.58144861]
[1739892952374,0.209217,95612.0,95608.0,0.5700247]
[1739892952679,0.209221,95610.0,95608.0,0.3608]
[1739892953876,0.1133,95619.0,95608.0,0.3608]
[1739892954571,0.1133,95619.0,95616.0,0.2092058]
[1739892955174,0.2092052,95618.0,95616.0,0.22066682]
[1739892955472,0.1133,95619.0,95610.0,0.2092206]
[1739892955685,0.1133,95619.0,95608.0,0.3608]
[1739892955975,0.1133,95619.0,95617.0,0.2092054]
[1739892956766,0.18470868,95630.0,95617.0,0.2092054]
[1739892956973,0.2091942,95623.0,95617.0,0.2092054]
[1739892957170,0.01136767,95624.0,95616.0,0.3608]
[1739892957379,0.18470868,95630.0,95620.0,0.2091975]
[1739892957574,0.0582,95630.0,95620.0,0.2091975]
[1739892957971,0.00527179,95622.0,95620.0,0.2091975]
[1739892958172,0.0582,95630.0,95617.0,0.001]
[1739892958367,0.2091911,95624.0,95617.0,0.001]
[1739892958680,0.2091911,95624.0,95617.0,0.2102053]
[1739892958880,0.18470868,95630.0,95617.0,0.001]
[1739892959076,0.0582,95630.0,95626.0,0.2091856]
[1739892959265,0.12650868,95650.0,95624.0,0.3608]
[1739892959465,0.2091712,95633.0,95627.0,0.2091815]
[1739892959667,0.12650868,95640.0,95624.0,0.3608]
[1739892959969,0.2091879,95625.0,95624.0,0.3608]
[1739892960169,0.3608,95635.0,95624.0,0.3608]
[1739892960170,0.0597,95639.0,95624.0,0.3608]
[1739892960372,0.2091618,95637.0,95627.0,0.2091829]
[1739892960579,0.0597,95639.0,95624.0,0.3608]
[1739892960777,0.0597,95639.0,95629.0,0.12650868]
[1739892960973,0.0597,95639.0,95630.0,0.2091749]
[1739892961177,0.0597,95639.0,95632.0,0.2091718]
[1739892961373,0.0597,95639.0,95624.0,0.3608]
[1739892961374,0.0597,95639.0,95633.0,0.2091698]
[1739892961772,0.0597,95639.0,95636.0,0.3608]
[1739892962073,0.0561,95643.0,95639.0,0.2091555]
[1739892962274,0.2652487,95643.0,95639.0,0.2091555]
[1739892962582,0.00533699,95642.0,95636.0,0.3608]
[1739892962776,0.0561,95643.0,95636.0,0.3608]
[1739892962777,0.0561,95643.0,95642.0,0.2091507]
[1739892962979,0.0556,95656.0,95655.0,0.2091223]
[1739892963376,0.3608,95666.0,95651.0,0.3608]
[1739892963573,0.3608,95666.0,95659.0,0.3608]
[1739892963882,0.0113143,95666.0,95659.0,0.3608]
[1739892964077,0.0537,95669.0,95659.0,0.3608]
[1739892964389,0.2091091,95662.0,95659.0,0.3608]
[1739892964580,0.2091092,95661.0,95659.0,0.3608]
[1739892964784,0.3608,95660.0,95651.0,0.001]
[1739892965080,0.2091275,95653.0,95651.0,0.001]
[1739892965283,0.2091398,95647.0,95646.0,0.00015684]
[1739892965584,0.47036001,95652.0,95646.0,0.00015684]
[1739892965888,0.10956001,95652.0,95646.0,0.00015684]
[1739892966091,0.0537,95652.0,95646.0,0.00015684]
[1739892966782,0.2091189,95657.0,95646.0,0.00015684]
[1739892967176,0.2091189,95657.0,95651.0,0.001]
[1739892967574,0.209121,95656.0,95651.0,0.001]
[1739892967778,0.209123,95655.0,95651.0,0.001]
[1739892967980,0.001,95652.0,95648.0,0.3608]
[1739892968182,0.001,95652.0,95649.0,0.11968]
[1739892968486,0.2091318,95651.0,95649.0,0.11968]
[1739892968678,0.209139,95648.0,95646.0,0.00015684]
[1739892969276,0.569939,95648.0,95646.0,0.00015684]
[1739892969581,0.2092007,95620.0,95605.0,0.3608]
[1739892969980,0.0571,95619.0,95605.0,0.3608]
[1739892970781,0.0571,95619.0,95609.0,0.00015684]
[1739892971192,0.0579,95627.0,95614.0,0.3608]
[1739892971379,0.00015627,95628.0,95618.0,0.003]
[1739892971882,0.00015627,95628.0,95627.0,0.3608]
[1739892972987,0.00015627,95628.0,95619.0,0.1155]
[1739892973191,0.00015627,95628.0,95614.0,0.3608]
[1739892973378,0.12650868,95624.0,95605.0,0.3608]
[1739892973578,0.3608,95616.0,95605.0,0.3608]
[1739892973777,0.2092142,95613.0,95605.0,0.3608]
[1739892974488,0.2092207,95610.0,95605.0,0.3608]
[1739892975702,0.2092207,95610.0,95609.0,0.00115684]
[1739892976589,0.22062335,95610.0,95609.0,0.00115684]
[1739892978089,0.0568,95612.0,95609.0,0.00115684]
[1739892978486,0.00512163,95613.0,95609.0,0.00115684]
[1739892978990,0.21433753,95613.0,95609.0,0.00115684]
[1739892979191,0.21433753,95613.0,95609.0,0.00015684]
[1739892979392,0.2092198,95611.0,95609.0,0.00115684]
[1739892980090,0.0544,95610.0,95609.0,0.00115684]
[1739892981385,0.2092689,95588.0,95587.0,0.91188]
[1739892981584,0.209282,95582.0,95581.0,0.0552]
[1739892981783,0.209282,95582.0,95576.0,0.4155]
[1739892982087,0.2092679,95589.0,95576.0,0.4155]
[1739892982286,0.18932836,95600.0,95588.0,0.3608]
[1739892982479,0.0543,95608.0,95588.0,0.3608]
[1739892982686,0.0543,95608.0,95596.0,0.2092504]
[1739892982991,0.00015692,95608.0,95607.0,0.3608]
[1739892983786,0.1676,95631.0,95613.0,0.2092142]
[1739892984093,0.2091852,95627.0,95613.0,0.2092142]
[1739892984298,0.2091852,95627.0,95617.0,0.3608]
[1739892984478,0.1676,95631.0,95617.0,0.3608]
[1739892984885,0.1676,95631.0,95618.0,0.0564]
[1739892985191,0.18177954,95631.0,95618.0,0.0564]
[1739892985488,0.001,95627.0,95618.0,0.0564]
[1739892985695,0.2091954,95622.0,95618.0,0.0564]
[1739892987496,0.00535994,95628.0,95618.0,0.0564]
[1739892988497,0.002,95631.0,95627.0,0.3608]
[1739892988686,0.20932537,95634.0,95627.0,0.3608]
[1739892989097,0.20932537,95634.0,95628.0,0.0559]
[1739892989294,0.01451516,95634.0,95628.0,0.0559]
[1739892989595,0.01451516,95634.0,95621.0,0.00015692]
[1739892989596,0.2091945,95622.0,95621.0,0.00015692]
[1739892993388,0.5699945,95622.0,95621.0,0.00015692]
[1739892993593,0.2860625,95622.0,95621.0,0.00015692]
[1739892995193,0.2870625,95622.0,95621.0,0.00015692]
[1739892995385,0.6478625,95622.0,95621.0,0.00015692]
[1739892996595,0.2870625,95622.0,95621.0,0.00015692]
[1739892997097,0.077868,95622.0,95621.0,0.00015692]
[1739892997601,0.17422014,95622.0,95621.0,0.00015692]
[1739892999789,0.22042014,95622.0,95621.0,0.00015692]
[1739892999993,0.32472014,95622.0,95621.0,0.00015692]
[1739893001004,0.077868,95622.0,95621.0,0.00015692]
[1739893002097,0.076868,95622.0,95621.0,0.00015692]
[1739893002296,0.077868,95622.0,95621.0,0.00015692]
[1739893003397,0.076868,95622.0,95621.0,0.00015692]
[1739893003596,0.077868,95622.0,95621.0,0.00015692]
[1739893005906,0.077868,95622.0,95593.0,0.0446]
[1739893005907,0.209247,95598.0,95593.0,0.0446]
[1739893006100,0.2092536,95595.0,95594.0,0.91264]
[1739893006297,0.2092536,95595.0,95594.0,0.91208]
[1739893006995,0.22362212,95595.0,95594.0,0.91208]
[1739893007407,0.22362212,95595.0,95594.0,0.003]
[1739893007904,0.2092733,95586.0,95585.0,0.00015692]
[1739893008106,0.5700733,95586.0,95585.0,0.00015692]
[1739893009306,0.2093061,95571.0,95570.0,0.3608]
[1739893009508,0.20931,95570.0,95566.0,0.0437]
[1739893009808,0.3608,95574.0,95566.0,0.0437]
[1739893010196,0.2093277,95562.0,95560.0,0.3608]
[1739893010397,0.3608,95564.0,95553.0,0.0472]
[1739893010593,0.18951773,95563.0,95553.0,0.0472]
[1739893010794,0.2093477,95552.0,95551.0,0.00156978]
[1739893012404,0.5840091,95552.0,95551.0,0.00156978]
[1739893012601,0.2093521,95550.0,95549.0,0.00015692]
[1739893012804,0.2043521,95550.0,95549.0,0.00015692]
[1739893013904,0.37822141,95552.0,95549.0,0.00015692]
[1739893014101,0.3746614,95552.0,95549.0,0.00015692]
[1739893014306,0.002,95550.0,95549.0,0.00015692]
[1739893014810,0.002,95550.0,95533.0,0.043]
[1739893015111,0.2093724,95541.0,95533.0,0.043]
[1739893015311,0.2093851,95535.0,95533.0,0.043]
[1739893015507,0.3608,95536.0,95502.0,0.5702556]
[1739893015711,0.2094025,95527.0,95518.0,0.11968]
[1739893015910,0.18951773,95530.0,95511.0,0.06018937]
[1739893016102,0.18951773,95530.0,95513.0,0.00015701]
[1739893016604,0.2094021,95528.0,95513.0,0.00015701]
[1739893017001,0.001,95527.0,95513.0,0.00015701]
[1739893017203,0.2094183,95520.0,95513.0,0.00015701]
[1739893017403,0.001,95527.0,95513.0,0.00015701]
[1739893017914,0.002,95530.0,95513.0,0.00015701]
[1739893018118,0.002,95530.0,95529.0,0.3608]
[1739893018406,0.002,95530.0,95520.0,0.2094164]
[1739893018603,0.002,95530.0,95529.0,0.3608]
[1739893018805,0.002,95530.0,95521.0,0.0446]
[1739893019207,0.002,95530.0,95526.0,0.3608]
[1739893019398,0.002,95530.0,95529.0,0.2093981]
[1739893020002,0.00015701,95532.0,95531.0,0.2093938]
[1739893020611,0.00015701,95532.0,95527.0,0.0455]
[1739893020811,0.00015701,95532.0,95531.0,0.2093938]
[1739893021304,0.00015701,95532.0,95527.0,0.0455]
[1739893021711,0.2094025,95527.0,95521.0,0.0446]
[1739893022012,0.3608,95531.0,95521.0,0.0446]
[1739893022209,0.00015701,95532.0,95521.0,0.0446]
[1739893022413,0.00015701,95532.0,95531.0,0.3608]
[1739893022604,0.00015701,95532.0,95525.0,0.2094065]
[1739893022605,0.00015701,95532.0,95527.0,0.3608]
[1739893022912,0.2094099,95524.0,95521.0,0.0446]
[1739893023214,0.39891153,95531.0,95521.0,0.0446]
[1739893023618,0.2093938,95531.0,95521.0,0.0446]
[1739893024116,0.00215701,95532.0,95527.0,0.2094014]
[1739893024704,0.00215701,95532.0,95531.0,0.2093938]
[1739893025205,5e-08,95544.0,95542.0,0.2093692]
[1739893025410,0.06616628,95554.0,95553.0,0.2093455]
[1739893025607,0.00396628,95554.0,95553.0,0.5701455]
[1739893025801,0.18951773,95580.0,95553.0,0.3608]
[1739893026009,0.2092993,95575.0,95560.0,0.3608]
[1739893026312,0.24841837,95569.0,95560.0,0.3608]
[1739893026504,0.00015701,95567.0,95560.0,0.3608]
[1739893027011,0.00015701,95567.0,95566.0,0.2093171]
[1739893027210,0.00015701,95567.0,95566.0,0.5701171]
[1739893027812,0.00015701,95567.0,95566.0,0.3608]
[1739893028204,0.00015701,95567.0,95560.0,0.005]
[1739893028402,0.00015701,95567.0,95566.0,0.3608]
[1739893029811,0.24841837,95569.0,95566.0,0.3608]
[1739893030016,0.01864821,95569.0,95567.0,0.2093149]
[1739893030213,0.01864821,95569.0,95567.0,0.2174149]
[1739893031119,0.31263856,95572.0,95571.0,0.2093061]
[1739893031411,0.31263856,95572.0,95571.0,0.3608]
[1739893031919,0.31263856,95572.0,95566.0,0.3678]
[1739893031920,0.40303856,95572.0,95566.0,0.3678]
[1739893032613,0.2093149,95567.0,95566.0,0.3678]
[1739893033116,0.2093149,95567.0,95565.0,0.91316]
[1739893033117,0.2023149,95567.0,95565.0,0.91316]
[1739893033419,0.2093289,95561.0,95559.0,0.3608]
[1739893033614,0.2093543,95549.0,95548.0,0.3608]
[1739893034407,0.2093543,95549.0,95547.0,0.00015701]
[1739893034603,0.1374,95548.0,95547.0,0.00015701]
[1739893035019,0.15145243,95548.0,95547.0,0.00015701]
[1739893035208,0.15145243,95548.0,95538.0,0.91252]
[1739893035410,0.2093721,95541.0,95538.0,0.91252]
[1739893036825,0.1374,95548.0,95538.0,0.91252]
[1739893038116,0.1374,95548.0,95547.0,0.3608]
[1739893039520,0.2093665,95544.0,95538.0,0.91308]
[1739893039719,0.2093665,95544.0,95542.0,0.3608]
[1739893039911,0.1374,95548.0,95542.0,0.3608]
[1739893040117,0.1374,95548.0,95544.0,0.3608]
[1739893040318,0.1374,95548.0,95547.0,0.001]
[1739893040519,0.1374,95548.0,95547.0,0.2103587]
[1739893040819,0.00015701,95558.0,95557.0,0.2093368]
[1739893043730,0.00215701,95558.0,95557.0,0.2093368]
[1739893046930,0.00015701,95558.0,95557.0,0.2113368]
[1739893047429,0.00015701,95558.0,95557.0,0.2093368]
[1739893047828,1e-08,95558.0,95557.0,0.5093368]
[1739893048128,0.31263856,95572.0,95571.0,0.2093061]
[1739893048323,0.1319,95579.0,95578.0,0.2092908]
[1739893048526,0.0436,95579.0,95578.0,0.2092908]
[1739893049229,0.0442,95597.0,95595.0,0.209253]
[1739893049531,0.0442,95597.0,95596.0,0.3608]
[1739893050227,0.2534492,95597.0,95595.0,0.12592]
[1739893050428,0.2092623,95591.0,95590.0,0.3608]
[1739893050926,0.2092754,95586.0,95575.0,0.3608]
[1739893051130,0.2092746,95586.0,95575.0,0.3608]
[1739893051430,0.0442,95597.0,95584.0,0.5700763]
[1739893051431,0.2092594,95593.0,95584.0,0.5700763]
[1739893051824,0.0442,95597.0,95587.0,0.2092698]
[1739893052022,0.0442,95597.0,95584.0,0.3608]
[1739893052023,0.0442,95597.0,95592.0,0.3608]
[1739893052925,0.0442,95597.0,95595.0,0.2092529]
[1739893053730,0.0458,95598.0,95597.0,0.2092492]
[1739893054333,0.0458,95598.0,95596.0,0.3608]
[1739893054526,0.0458,95598.0,95597.0,0.12596]
[1739893054727,0.05886203,95598.0,95597.0,0.12596]
[1739893054932,0.209257,95594.0,95588.0,0.3608]
[1739893055226,0.0528,95598.0,95588.0,0.3608]
[1739893055431,0.0528,95598.0,95597.0,0.3608]
[1739893056837,0.0458,95598.0,95597.0,0.3608]
[1739893057532,0.0468,95598.0,95597.0,0.3608]
[1739893058132,0.001,95598.0,95597.0,0.3608]
[1739893058332,0.001,95598.0,95597.0,0.5700492]
[1739893059435,0.001,95598.0,95597.0,0.3608]
[1739893059629,0.001,95598.0,95597.0,0.48692]
[1739893060831,0.2092389,95602.0,95597.0,0.48692]
[1739893061022,0.003,95598.0,95597.0,0.3608]
[1739893061227,0.003,95598.0,95597.0,0.48672]
[1739893061636,0.001,95598.0,95597.0,0.6959692]
[1739893061831,0.001,95598.0,95597.0,0.5700492]
[1739893062229,0.00015691,95606.0,95604.0,0.2092322]
[1739893062433,0.00015691,95606.0,95605.0,0.3608]
[1739893063729,0.00015691,95606.0,95605.0,0.37409081]
[1739893065035,0.00315691,95606.0,95605.0,0.37409081]
[1739893071943,1e-08,95606.0,95605.0,0.37409081]
[1739893072141,1e-08,95606.0,95605.0,0.42179081]
[1739893074145,0.17457647,95629.0,95605.0,0.42179081]
[1739893074448,0.17457647,95629.0,95627.0,0.2091823]
[1739893074642,0.209167,95635.0,95630.0,0.209177]
[1739893074839,0.2091684,95634.0,95630.0,0.2091755]
[1739893075047,0.13923535,95640.0,95625.0,0.01357325]
[1739893075246,0.2091711,95633.0,95631.0,0.2091747]
[1739893075448,0.2091816,95628.0,95625.0,0.2091869]
[1739893075749,0.007,95629.0,95627.0,0.001]
[1739893075952,0.007,95629.0,95628.0,0.2091814]
[1739893076352,0.2091669,95635.0,95632.0,0.2091724]
[1739893076850,0.2091669,95635.0,95626.0,0.3608]
[1739893076851,0.2091669,95635.0,95633.0,0.2091694]
[1739893077349,0.1425,95634.0,95633.0,0.2091694]
[1739893077555,0.3516682,95634.0,95633.0,0.2091694]
[1739893078547,0.1425,95634.0,95628.0,0.2091813]
[1739893078751,0.14776368,95634.0,95627.0,0.001]
[1739893078956,0.14776368,95634.0,95626.0,0.3608]
[1739893079142,0.14776368,95634.0,95633.0,0.001]
[1739893079143,0.36393188,95634.0,95633.0,0.001]
[1739893079749,0.2091775,95630.0,95628.0,0.001]
[1739893080251,0.2091792,95629.0,95628.0,0.001]
[1739893080453,0.15476368,95634.0,95633.0,0.2091704]
[1739893080655,0.2091705,95633.0,95628.0,0.2101808]
[1739893080846,0.15476368,95634.0,95628.0,0.001]
[1739893081046,0.15476368,95634.0,95633.0,0.2091704]
[1739893081252,0.1495,95634.0,95633.0,0.2091704]
[1739893081655,0.1495,95634.0,95633.0,0.22241743]
[1739893081952,0.007,95634.0,95633.0,0.22241743]
[1739893082644,0.007,95634.0,95633.0,0.58321743]
[1739893082844,0.1403,95644.0,95633.0,0.58321743]